[Event "*** Titled Tuesday Blitz"]
[Site "Chess.com"]
[Date "2020.04.21"]
[Round "1"]
[White "eightbyeightchess"]
[Black "Dedic8"]
[Result "1-0"]
[WhiteElo "2438"]
[BlackElo "2785"]
[TimeControl "180+1"]
[EndTime "10:03:57 PDT"]
[Termination "eightbyeightchess won by resignation"]

1. e4 {[%clk 0:02:33]} 1... e5 {[%clk 0:02:59.9]} 2. Nf3 {[%clk 0:02:32.6]} 2...
Nc6 {[%clk 0:03:00.7]} 3. Bb5 {[%clk 0:02:32.7]} 3... a6 {[%clk 0:03:00.3]} 4.
Ba4 {[%clk 0:02:32.2]} 4... Nf6 {[%clk 0:02:59.6]} 5. d4 {[%clk 0:02:31.9]} 5...
exd4 {[%clk 0:02:47]} 6. O-O {[%clk 0:02:30.8]} 6... b5 {[%clk 0:02:34.4]} 7.
Bb3 {[%clk 0:02:30.1]} 7... Be7 {[%clk 0:02:35.2]} 8. Re1 {[%clk 0:02:29.9]}
8... O-O {[%clk 0:02:32.2]} 9. e5 {[%clk 0:02:29.4]} 9... Ne8 {[%clk 0:02:31.1]}
10. c3 {[%clk 0:02:29.5]} 10... dxc3 {[%clk 0:02:30]} 11. Nxc3 {[%clk
0:02:30.4]} 11... Bb7 {[%clk 0:02:26.8]} 12. Nd5 {[%clk 0:02:16.1]} 12... Kh8
{[%clk 0:02:25.6]} 13. Nxe7 {[%clk 0:02:10.3]} 13... Nxe7 {[%clk 0:01:50.5]} 14.
Ng5 {[%clk 0:02:09.8]} 14... d5 {[%clk 0:00:54.8]} 15. Qh5 {[%clk 0:02:07.2]}
15... h6 {[%clk 0:00:49.6]} 16. Nxf7+ {[%clk 0:02:05.5]} 16... Kg8 {[%clk
0:00:49.2]} 17. Nxd8 {[%clk 0:02:04.3]} 17... Rxd8 {[%clk 0:00:50.1]} 1-0

[Event "*** Titled Tuesday Blitz"]
[Site "Chess.com"]
[Date "2020.04.21"]
[Round "1"]
[White "ENEASZ"]
[Black "GM4life"]
[Result "0-1"]
[WhiteElo "2530"]
[BlackElo "2175"]
[TimeControl "180+1"]
[EndTime "10:04:16 PDT"]
[Termination "GM4life won by resignation"]

1. e4 {[%clk 0:03:00.2]} 1... c5 {[%clk 0:02:59.8]} 2. c3 {[%clk 0:03:00]} 2...
Nf6 {[%clk 0:02:59.1]} 3. e5 {[%clk 0:03:00]} 3... Nd5 {[%clk 0:02:59.6]} 4. d4
{[%clk 0:02:57.7]} 4... cxd4 {[%clk 0:02:59.6]} 5. cxd4 {[%clk 0:02:58.2]} 5...
d6 {[%clk 0:02:59.8]} 6. Nf3 {[%clk 0:02:58.3]} 6... Nc6 {[%clk 0:02:59.7]} 7.
Bc4 {[%clk 0:02:58.1]} 7... Nb6 {[%clk 0:02:59.4]} 8. Bb5 {[%clk 0:02:58.2]}
8... dxe5 {[%clk 0:02:59]} 9. Nxe5 {[%clk 0:02:59.1]} 9... Bd7 {[%clk 0:02:59]}
10. Bxc6 {[%clk 0:02:59.3]} 10... Bxc6 {[%clk 0:02:52.1]} 11. Nxc6 {[%clk
0:02:59.3]} 11... bxc6 {[%clk 0:02:52.2]} 12. O-O {[%clk 0:03:00.1]} 12... e6
{[%clk 0:02:51.8]} 13. Qg4 {[%clk 0:02:59.7]} 13... Qd7 {[%clk 0:02:14.9]} 14.
Nc3 {[%clk 0:02:57.2]} 14... Rd8 {[%clk 0:02:14.1]} 15. Be3 {[%clk 0:02:56.2]}
15... Nd5 {[%clk 0:02:09.8]} 16. Rac1 {[%clk 0:02:54]} 16... h5 {[%clk
0:01:47.4]} 17. Qg3 {[%clk 0:02:51.8]} 17... h4 {[%clk 0:01:47]} 18. Qg4 {[%clk
0:02:50.9]} 18... Nf6 {[%clk 0:01:45.6]} 19. Qf3 {[%clk 0:02:49.8]} 19... h3
{[%clk 0:01:44]} 20. g3 {[%clk 0:02:45.7]} 20... Be7 {[%clk 0:01:39.6]} 21. Rfd1
{[%clk 0:02:14.6]} 21... Nd5 {[%clk 0:01:37.4]} 22. Ne4 {[%clk 0:02:12.9]} 22...
Kf8 {[%clk 0:01:33.7]} 23. a3 {[%clk 0:02:05.8]} 23... Nf6 {[%clk 0:01:24.3]}
24. Rd2 {[%clk 0:01:43.8]} 24... Qd5 {[%clk 0:01:22]} 25. Nxf6 {[%clk 0:01:38]}
25... Qxf3 {[%clk 0:01:19.9]} 0-1

[Event "*** Titled Tuesday Blitz"]
[Site "Chess.com"]
[Date "2020.04.21"]
[Round "1"]
[White "Arjun2002"]
[Black "saisree"]
[Result "1-0"]
[WhiteElo "2651"]
[BlackElo "2316"]
[TimeControl "180+1"]
[EndTime "10:04:22 PDT"]
[Termination "Arjun2002 won by resignation"]

1. e4 {[%clk 0:03:00.9]} 1... c6 {[%clk 0:03:00.2]} 2. d4 {[%clk 0:02:59]} 2...
d5 {[%clk 0:03:00.8]} 3. e5 {[%clk 0:02:59.6]} 3... Bf5 {[%clk 0:03:00.1]} 4. h4
{[%clk 0:02:59.7]} 4... h5 {[%clk 0:02:57.8]} 5. Bd3 {[%clk 0:02:59.2]} 5...
Bxd3 {[%clk 0:02:56.9]} 6. Qxd3 {[%clk 0:03:00.1]} 6... e6 {[%clk 0:02:55.7]} 7.
Bg5 {[%clk 0:02:59.2]} 7... Qb6 {[%clk 0:02:50.7]} 8. Nd2 {[%clk 0:02:56.1]}
8... c5 {[%clk 0:02:49.1]} 9. c4 {[%clk 0:02:55.8]} 9... Ne7 {[%clk 0:02:24.8]}
10. Ngf3 {[%clk 0:02:44.4]} 10... Nbc6 {[%clk 0:02:23.3]} 11. Bxe7 {[%clk
0:02:30]} 11... Bxe7 {[%clk 0:02:22.7]} 12. cxd5 {[%clk 0:02:14.9]} 12... exd5
{[%clk 0:02:22.5]} 13. dxc5 {[%clk 0:02:10.3]} 13... Bxc5 {[%clk 0:02:17.6]} 14.
O-O {[%clk 0:02:09]} 14... O-O {[%clk 0:02:01.6]} 15. Ng5 {[%clk 0:01:39.2]}
15... g6 {[%clk 0:02:00.5]} 16. e6 {[%clk 0:01:35.6]} 16... Ne5 {[%clk
0:01:49.2]} 17. exf7+ {[%clk 0:01:29.3]} 17... Rxf7 {[%clk 0:01:43.3]} 18. Qxd5
{[%clk 0:01:27.1]} 18... Rd8 {[%clk 0:01:43.5]} 19. Qxe5 {[%clk 0:01:25]} 19...
Rxd2 {[%clk 0:01:37.4]} 20. Nxf7 {[%clk 0:01:22]} 1-0

[Event "*** Titled Tuesday Blitz"]
[Site "Chess.com"]
[Date "2020.04.21"]
[Round "1"]
[White "EddieMarsalla"]
[Black "IngOscarArdila"]
[Result "1-0"]
[WhiteElo "2510"]
[BlackElo "2061"]
[TimeControl "180+1"]
[EndTime "10:04:25 PDT"]
[Termination "EddieMarsalla won by resignation"]

1. d4 {[%clk 0:03:00.9]} 1... Nf6 {[%clk 0:02:58.3]} 2. Bg5 {[%clk 0:03:00.7]}
2... e6 {[%clk 0:02:56.7]} 3. Nd2 {[%clk 0:03:00.2]} 3... Be7 {[%clk 0:02:56.6]}
4. c3 {[%clk 0:03:00.3]} 4... h6 {[%clk 0:02:55.8]} 5. Bh4 {[%clk 0:03:00.1]}
5... d6 {[%clk 0:02:55.7]} 6. Ngf3 {[%clk 0:02:59.2]} 6... Nbd7 {[%clk
0:02:55.8]} 7. e4 {[%clk 0:02:56.3]} 7... b6 {[%clk 0:02:54.6]} 8. Bd3 {[%clk
0:02:51.2]} 8... Bb7 {[%clk 0:02:54]} 9. Qe2 {[%clk 0:02:51.1]} 9... g5 {[%clk
0:02:48.6]} 10. Bg3 {[%clk 0:02:49.9]} 10... c5 {[%clk 0:02:24.5]} 11. Nc4
{[%clk 0:02:48.8]} 11... Nf8 {[%clk 0:02:17.9]} 12. Nxd6+ {[%clk 0:02:36.8]}
12... Bxd6 {[%clk 0:02:17.9]} 13. Bb5+ {[%clk 0:02:36.8]} 13... Ke7 {[%clk
0:02:11.7]} 14. e5 {[%clk 0:02:35.3]} 14... Ne4 {[%clk 0:02:04.9]} 15. exd6+
{[%clk 0:02:32.3]} 15... Nxd6 {[%clk 0:02:05.8]} 16. dxc5 {[%clk 0:02:30]} 16...
bxc5 {[%clk 0:02:03.3]} 17. O-O-O {[%clk 0:02:27.6]} 17... Bd5 {[%clk 0:02:03]}
18. Rxd5 {[%clk 0:02:25.8]} 18... Kf6 {[%clk 0:01:54.5]} 19. Rxd6 {[%clk
0:02:24.4]} 19... Qa5 {[%clk 0:01:54.3]} 20. Be5+ {[%clk 0:02:13.4]} 20... Kg6
{[%clk 0:01:54.4]} 21. Bxh8 {[%clk 0:02:13.3]} 21... Qxa2 {[%clk 0:01:53.9]} 22.
Bd3+ {[%clk 0:02:13.2]} 22... f5 {[%clk 0:01:53.7]} 23. Bb1 {[%clk 0:02:05.5]}
23... Qa1 {[%clk 0:01:45]} 24. g4 {[%clk 0:01:45.7]} 24... Rb8 {[%clk
0:01:42.8]} 25. gxf5+ {[%clk 0:01:43.7]} 25... Kh7 {[%clk 0:01:42.3]} 26. fxe6+
{[%clk 0:01:40.3]} 26... Kxh8 {[%clk 0:01:41.7]} 27. e7 {[%clk 0:01:38.1]} 27...
Ng6 {[%clk 0:01:30.4]} 28. e8=Q+ {[%clk 0:01:36.2]} 28... Rxe8 {[%clk
0:01:30.5]} 29. Qxe8+ {[%clk 0:01:35.6]} 29... Kg7 {[%clk 0:01:31.4]} 30. Qxg6+
{[%clk 0:01:36]} 1-0

[Event "*** Titled Tuesday Blitz"]
[Site "Chess.com"]
[Date "2020.04.21"]
[Round "1"]
[White "Lion-Al-Messi"]
[Black "Sethu0025"]
[Result "0-1"]
[WhiteElo "2431"]
[BlackElo "2817"]
[TimeControl "180+1"]
[EndTime "10:04:28 PDT"]
[Termination "Sethu0025 won by resignation"]

1. d4 {[%clk 0:03:00.9]} 1... d6 {[%clk 0:02:59.6]} 2. Nf3 {[%clk 0:03:01.5]}
2... g6 {[%clk 0:02:59.4]} 3. e4 {[%clk 0:03:00.9]} 3... Bg7 {[%clk 0:02:59]} 4.
c3 {[%clk 0:03:01.6]} 4... Nf6 {[%clk 0:02:58.2]} 5. Bd3 {[%clk 0:03:02]} 5...
O-O {[%clk 0:02:58.9]} 6. O-O {[%clk 0:03:02.4]} 6... c5 {[%clk 0:02:59.5]} 7.
Nbd2 {[%clk 0:03:02.4]} 7... Nc6 {[%clk 0:02:57.7]} 8. Re1 {[%clk 0:03:02.3]}
8... Qc7 {[%clk 0:02:52.9]} 9. d5 {[%clk 0:03:02]} 9... Nb8 {[%clk 0:02:48.5]}
10. a4 {[%clk 0:03:00.3]} 10... e6 {[%clk 0:02:43.3]} 11. dxe6 {[%clk
0:02:59.7]} 11... Bxe6 {[%clk 0:02:43.5]} 12. Nc4 {[%clk 0:02:59.3]} 12... Nc6
{[%clk 0:02:35.1]} 13. Bf4 {[%clk 0:02:58.2]} 13... Rfd8 {[%clk 0:02:30.5]} 14.
Bc2 {[%clk 0:02:57.2]} 14... Bxc4 {[%clk 0:02:29.6]} 15. Qc1 {[%clk 0:02:54.6]}
15... Ne5 {[%clk 0:02:28.6]} 16. Qe3 {[%clk 0:02:42.7]} 16... Be6 {[%clk
0:02:25.9]} 17. h3 {[%clk 0:02:37.5]} 17... Nxf3+ {[%clk 0:02:19]} 18. Qxf3
{[%clk 0:02:37.4]} 18... Nd7 {[%clk 0:02:19.6]} 19. Rad1 {[%clk 0:02:35.1]}
19... Ne5 {[%clk 0:02:19.7]} 20. Qg3 {[%clk 0:02:35]} 20... Qe7 {[%clk
0:02:19.8]} 21. Bg5 {[%clk 0:02:34.2]} 21... f6 {[%clk 0:02:20]} 22. Bc1 {[%clk
0:02:33.9]} 22... Nf7 {[%clk 0:02:18.4]} 23. f4 {[%clk 0:02:33.9]} 23... Bd7
{[%clk 0:02:17.3]} 24. h4 {[%clk 0:02:29.5]} 24... Kh8 {[%clk 0:02:14.1]} 25. h5
{[%clk 0:02:01.2]} 25... gxh5 {[%clk 0:02:13.7]} 26. e5 {[%clk 0:01:50.2]} 26...
dxe5 {[%clk 0:02:03.2]} 27. fxe5 {[%clk 0:01:49.6]} 27... Nxe5 {[%clk
0:02:00.9]} 28. Re4 {[%clk 0:01:41]} 28... Bf5 {[%clk 0:01:53.5]} 29. Rxe5
{[%clk 0:01:38.7]} 29... Qxe5 {[%clk 0:01:43]} 30. Rxd8+ {[%clk 0:01:24.6]}
30... Rxd8 {[%clk 0:01:43.1]} 31. Bf4 {[%clk 0:01:25.5]} 31... Qe6 {[%clk
0:01:37.8]} 0-1

[Event "*** Titled Tuesday Blitz"]
[Site "Chess.com"]
[Date "2020.04.21"]
[Round "1"]
[White "Yuri202062"]
[Black "Shivagami"]
[Result "1-0"]
[WhiteElo "2544"]
[BlackElo "2145"]
[TimeControl "180+1"]
[EndTime "10:04:28 PDT"]
[Termination "Yuri202062 won by resignation"]

1. d4 {[%clk 0:02:58.6]} 1... Nf6 {[%clk 0:02:46.4]} 2. c4 {[%clk 0:02:57.4]}
2... c5 {[%clk 0:02:45.2]} 3. d5 {[%clk 0:02:56.5]} 3... e6 {[%clk 0:02:43.7]}
4. Nc3 {[%clk 0:02:55.2]} 4... exd5 {[%clk 0:02:35.9]} 5. cxd5 {[%clk
0:02:54.7]} 5... d6 {[%clk 0:02:35.8]} 6. Nf3 {[%clk 0:02:53.7]} 6... g6 {[%clk
0:02:35.9]} 7. Bf4 {[%clk 0:02:52.9]} 7... a6 {[%clk 0:02:30.9]} 8. a4 {[%clk
0:02:51.7]} 8... Bg7 {[%clk 0:02:31.1]} 9. e3 {[%clk 0:02:49.5]} 9... O-O {[%clk
0:02:31.1]} 10. h3 {[%clk 0:02:48.9]} 10... Ne8 {[%clk 0:02:18.2]} 11. Be2
{[%clk 0:02:47.8]} 11... Qe7 {[%clk 0:02:18.3]} 12. O-O {[%clk 0:02:46.8]} 12...
Nd7 {[%clk 0:02:18.5]} 13. Re1 {[%clk 0:02:43.6]} 13... Nc7 {[%clk 0:02:13.4]}
14. e4 {[%clk 0:02:42.1]} 14... Ne5 {[%clk 0:02:12.8]} 15. Nxe5 {[%clk
0:02:40.9]} 15... dxe5 {[%clk 0:01:51.6]} 16. Be3 {[%clk 0:02:40.3]} 16... Qd6
{[%clk 0:01:43.4]} 17. a5 {[%clk 0:02:37.5]} 17... Bd7 {[%clk 0:01:30.4]} 18.
Na4 {[%clk 0:02:34.2]} 18... Bxa4 {[%clk 0:01:28.9]} 19. Qxa4 {[%clk 0:02:33.1]}
19... Rac8 {[%clk 0:01:21]} 20. Rec1 {[%clk 0:02:28.4]} 20... f5 {[%clk
0:00:34.5]} 21. Bxc5 {[%clk 0:02:25.2]} 21... Qf6 {[%clk 0:00:33.5]} 22. Bxf8
{[%clk 0:02:22.1]} 22... Bxf8 {[%clk 0:00:29.3]} 23. Qd7 {[%clk 0:02:18.4]} 1-0

[Event "*** Titled Tuesday Blitz"]
[Site "Chess.com"]
[Date "2020.04.21"]
[Round "1"]
[White "steepedgames"]
[Black "BakaPG"]
[Result "0-1"]
[WhiteElo "2363"]
[BlackElo "2700"]
[TimeControl "180+1"]
[EndTime "10:04:29 PDT"]
[Termination "BakaPG won by resignation"]

1. d4 {[%clk 0:03:00.9]} 1... d5 {[%clk 0:02:57.7]} 2. Nf3 {[%clk 0:03:00.8]}
2... Nf6 {[%clk 0:02:56.9]} 3. c4 {[%clk 0:03:00.3]} 3... c6 {[%clk 0:02:57.2]}
4. Nc3 {[%clk 0:03:00.5]} 4... e6 {[%clk 0:02:56.5]} 5. e3 {[%clk 0:02:55.3]}
5... Nbd7 {[%clk 0:02:55.6]} 6. a3 {[%clk 0:02:51.8]} 6... Ne4 {[%clk
0:02:54.8]} 7. Qc2 {[%clk 0:02:48.9]} 7... f5 {[%clk 0:02:54.1]} 8. Bd3 {[%clk
0:02:49.2]} 8... Bd6 {[%clk 0:02:53.5]} 9. b4 {[%clk 0:02:47.5]} 9... O-O {[%clk
0:02:53.1]} 10. Bb2 {[%clk 0:02:47.8]} 10... a6 {[%clk 0:02:48.5]} 11. h4 {[%clk
0:02:38.2]} 11... Ndf6 {[%clk 0:02:42.7]} 12. g3 {[%clk 0:02:37.5]} 12... Ng4
{[%clk 0:02:42]} 13. Nd1 {[%clk 0:02:36.1]} 13... b5 {[%clk 0:02:32.4]} 14. c5
{[%clk 0:02:28.2]} 14... Nexf2 {[%clk 0:02:22.6]} 15. cxd6 {[%clk 0:02:08.3]}
15... Nxh1 {[%clk 0:02:22]} 16. Qxc6 {[%clk 0:02:07.7]} 16... Bd7 {[%clk
0:02:17.4]} 17. Qc7 {[%clk 0:01:58.7]} 17... Nxg3 {[%clk 0:02:16.1]} 18. Rc1
{[%clk 0:01:47.9]} 18... Ne4 {[%clk 0:02:09.3]} 19. Ke2 {[%clk 0:01:32]} 19...
Rc8 {[%clk 0:02:04.6]} 20. Qxd8 {[%clk 0:01:27.7]} 20... Rfxd8 {[%clk
0:02:03.1]} 21. Rxc8 {[%clk 0:01:21.3]} 21... Bxc8 {[%clk 0:01:58.4]} 22. Ne5
{[%clk 0:01:20.7]} 22... Nxd6 {[%clk 0:01:43.4]} 0-1

[Event "*** Titled Tuesday Blitz"]
[Site "Chess.com"]
[Date "2020.04.21"]
[Round "1"]
[White "fm_magua"]
[Black "SameerMujumdar"]
[Result "1-0"]
[WhiteElo "2566"]
[BlackElo "2208"]
[TimeControl "180+1"]
[EndTime "10:04:31 PDT"]
[Termination "fm_magua won by resignation"]

1. e4 {[%clk 0:03:00.3]} 1... c5 {[%clk 0:02:56.7]} 2. Nf3 {[%clk 0:02:59.8]}
2... e6 {[%clk 0:02:57.1]} 3. d4 {[%clk 0:03:00.3]} 3... cxd4 {[%clk 0:02:58]}
4. Nxd4 {[%clk 0:03:00.9]} 4... a6 {[%clk 0:02:58.3]} 5. Nc3 {[%clk 0:03:01.4]}
5... Qc7 {[%clk 0:02:57.7]} 6. Be2 {[%clk 0:03:01.6]} 6... Nf6 {[%clk
0:02:57.7]} 7. O-O {[%clk 0:03:02.2]} 7... d6 {[%clk 0:02:57.4]} 8. Be3 {[%clk
0:03:01.3]} 8... Be7 {[%clk 0:02:57.6]} 9. f4 {[%clk 0:03:01.5]} 9... O-O {[%clk
0:02:57.9]} 10. Qe1 {[%clk 0:03:01.6]} 10... b5 {[%clk 0:02:56.2]} 11. Bd3
{[%clk 0:03:00.4]} 11... Nbd7 {[%clk 0:02:55.5]} 12. Qg3 {[%clk 0:02:59.6]}
12... Bb7 {[%clk 0:02:53.4]} 13. a3 {[%clk 0:02:47.4]} 13... Kh8 {[%clk
0:02:47.5]} 14. f5 {[%clk 0:02:41.7]} 14... e5 {[%clk 0:02:47]} 15. Nde2 {[%clk
0:02:40.7]} 15... Nc5 {[%clk 0:02:43.5]} 16. Bg5 {[%clk 0:02:22.2]} 16... Nh5
{[%clk 0:02:29.5]} 17. Qh4 {[%clk 0:02:19.3]} 17... Bxg5 {[%clk 0:02:29.1]} 18.
Qxg5 {[%clk 0:02:01.4]} 18... Nf6 {[%clk 0:02:28.5]} 19. Ng3 {[%clk 0:02:00.7]}
19... Qe7 {[%clk 0:02:12.1]} 20. Rae1 {[%clk 0:01:50.6]} 20... h6 {[%clk
0:02:10.1]} 21. Qh4 {[%clk 0:01:49.1]} 21... Rfe8 {[%clk 0:01:54]} 22. Qh3
{[%clk 0:01:45.4]} 22... Rad8 {[%clk 0:01:48.9]} 23. Re3 {[%clk 0:01:41.7]}
23... Nh7 {[%clk 0:01:38.4]} 24. f6 {[%clk 0:01:38.2]} 24... Nxf6 {[%clk
0:01:38.2]} 25. Nf5 {[%clk 0:01:37.9]} 25... Qf8 {[%clk 0:01:38.7]} 26. Rg3
{[%clk 0:01:35.2]} 26... Ne6 {[%clk 0:01:36.7]} 27. Nxh6 {[%clk 0:01:23.9]}
27... gxh6 {[%clk 0:01:33.4]} 28. Rxf6 {[%clk 0:01:22.9]} 28... Kh7 {[%clk
0:01:32.9]} 29. Qf5+ {[%clk 0:01:20.2]} 29... Kh8 {[%clk 0:01:32.6]} 30. Rxf7
{[%clk 0:01:20.3]} 1-0

[Event "*** Titled Tuesday Blitz"]
[Site "Chess.com"]
[Date "2020.04.21"]
[Round "1"]
[White "yamalchess"]
[Black "ClockworkKubrick"]
[Result "1-0"]
[WhiteElo "2544"]
[BlackElo "2152"]
[TimeControl "180+1"]
[EndTime "10:04:31 PDT"]
[Termination "yamalchess won by resignation"]

1. d4 {[%clk 0:03:00.9]} 1... Nf6 {[%clk 0:02:57.5]} 2. c4 {[%clk 0:03:00.8]}
2... g6 {[%clk 0:02:57.8]} 3. Nc3 {[%clk 0:03:00.9]} 3... Bg7 {[%clk 0:02:57.8]}
4. e4 {[%clk 0:03:00.9]} 4... O-O {[%clk 0:02:57.2]} 5. h3 {[%clk 0:03:01.3]}
5... d6 {[%clk 0:02:57.4]} 6. Bg5 {[%clk 0:03:00.2]} 6... e5 {[%clk 0:02:56.1]}
7. dxe5 {[%clk 0:02:59.5]} 7... dxe5 {[%clk 0:02:56.2]} 8. Qxd8 {[%clk
0:02:59.9]} 8... Rxd8 {[%clk 0:02:56.3]} 9. Nd5 {[%clk 0:02:59.8]} 9... Nxd5
{[%clk 0:02:48.3]} 10. Bxd8 {[%clk 0:02:58.2]} 10... Nf6 {[%clk 0:02:46.8]} 11.
Bxc7 {[%clk 0:02:54.8]} 11... Nxe4 {[%clk 0:02:45.8]} 12. Bxb8 {[%clk
0:02:49.4]} 12... Rxb8 {[%clk 0:02:44.6]} 13. Nf3 {[%clk 0:02:47.2]} 13... Be6
{[%clk 0:02:42.8]} 14. Rd1 {[%clk 0:02:43.9]} 14... h6 {[%clk 0:02:41.7]} 15.
Be2 {[%clk 0:02:40.6]} 15... a5 {[%clk 0:02:41.3]} 16. O-O {[%clk 0:02:38.7]}
16... a4 {[%clk 0:02:41.3]} 17. Rfe1 {[%clk 0:02:38.5]} 17... Nc5 {[%clk
0:02:36]} 18. Nd2 {[%clk 0:02:32.2]} 18... f5 {[%clk 0:02:34.6]} 19. b4 {[%clk
0:02:32]} 19... Nd7 {[%clk 0:02:28.9]} 20. c5 {[%clk 0:02:23.6]} 20... Nf6
{[%clk 0:02:25.8]} 21. Bc4 {[%clk 0:02:22.4]} 21... Bxc4 {[%clk 0:02:24]} 22.
Nxc4 {[%clk 0:02:21.6]} 22... e4 {[%clk 0:02:24.3]} 23. Rd6 {[%clk 0:02:17.1]}
23... Ne8 {[%clk 0:02:18.4]} 24. Rb6 {[%clk 0:02:12.6]} 24... Bd4 {[%clk
0:01:53.2]} 25. Rd1 {[%clk 0:02:08.2]} 25... Rd8 {[%clk 0:01:49.8]} 26. Kf1
{[%clk 0:01:59.5]} 26... Rd7 {[%clk 0:01:48.1]} 27. Nd6 {[%clk 0:01:45.1]} 27...
Nxd6 {[%clk 0:01:09.5]} 28. Rxd4 {[%clk 0:01:43.5]} 1-0

[Event "*** Titled Tuesday Blitz"]
[Site "Chess.com"]
[Date "2020.04.21"]
[Round "1"]
[White "H3nriqueTV"]
[Black "Mfcyryd"]
[Result "0-1"]
[WhiteElo "2152"]
[BlackElo "2543"]
[TimeControl "180+1"]
[EndTime "10:04:31 PDT"]
[Termination "Mfcyryd won by resignation"]

1. b3 {[%clk 0:02:58.2]} 1... Nf6 {[%clk 0:02:59.8]} 2. Bb2 {[%clk 0:02:53.6]}
2... e6 {[%clk 0:03:00.7]} 3. e3 {[%clk 0:02:53.4]} 3... a5 {[%clk 0:02:56.3]}
4. a4 {[%clk 0:02:52.2]} 4... b6 {[%clk 0:02:55.8]} 5. f4 {[%clk 0:02:50.3]}
5... Bb7 {[%clk 0:02:55.5]} 6. Nf3 {[%clk 0:02:51]} 6... d5 {[%clk 0:02:50.3]}
7. Be2 {[%clk 0:02:50.5]} 7... Be7 {[%clk 0:02:48.8]} 8. O-O {[%clk 0:02:50.5]}
8... Nbd7 {[%clk 0:02:48.7]} 9. Qe1 {[%clk 0:02:50.1]} 9... c5 {[%clk
0:02:48.5]} 10. Qg3 {[%clk 0:02:48.4]} 10... O-O {[%clk 0:02:44.1]} 11. Ne5
{[%clk 0:02:41.5]} 11... Nxe5 {[%clk 0:02:18.8]} 12. Bxe5 {[%clk 0:02:38.6]}
12... Ne8 {[%clk 0:02:17.5]} 13. Bb5 {[%clk 0:02:24.8]} 13... Bf6 {[%clk
0:02:13.9]} 14. d4 {[%clk 0:02:20.3]} 14... Nd6 {[%clk 0:02:09.6]} 15. Nc3
{[%clk 0:02:11.3]} 15... cxd4 {[%clk 0:02:08.5]} 16. exd4 {[%clk 0:02:11]} 16...
Rc8 {[%clk 0:02:07.8]} 17. Bd3 {[%clk 0:02:01.2]} 17... Rxc3 {[%clk 0:02:04.1]}
18. Bxh7+ {[%clk 0:02:01.2]} 18... Kxh7 {[%clk 0:02:05]} 19. Qxc3 {[%clk
0:02:01.9]} 19... Ne4 {[%clk 0:02:02.9]} 20. Qd3 {[%clk 0:02:00.7]} 20... g6
{[%clk 0:01:50.9]} 21. Rf3 {[%clk 0:01:59.9]} 21... Kg7 {[%clk 0:01:50.8]} 22.
Rh3 {[%clk 0:01:57.3]} 22... Rh8 {[%clk 0:01:48.2]} 23. Rxh8 {[%clk 0:01:51.8]}
23... Qxh8 {[%clk 0:01:49.1]} 24. Qb5 {[%clk 0:01:48.2]} 24... Qd8 {[%clk
0:01:48.2]} 25. Rf1 {[%clk 0:01:42.5]} 25... Bxe5 {[%clk 0:01:47.4]} 26. fxe5
{[%clk 0:01:40.7]} 26... Qc7 {[%clk 0:01:42.9]} 27. Qe8 {[%clk 0:01:30.2]} 27...
Bc6 {[%clk 0:01:42.2]} 0-1

[Event "*** Titled Tuesday Blitz"]
[Site "Chess.com"]
[Date "2020.04.21"]
[Round "1"]
[White "SamuelGhimpu2003"]
[Black "kasparicy"]
[Result "1-0"]
[WhiteElo "2657"]
[BlackElo "2329"]
[TimeControl "180+1"]
[EndTime "10:04:32 PDT"]
[Termination "SamuelGhimpu2003 won on time"]

1. e4 {[%clk 0:02:58.6]} 1... c5 {[%clk 0:02:59]} 2. Nf3 {[%clk 0:02:58]} 2...
d6 {[%clk 0:02:57.5]} 3. d4 {[%clk 0:02:56]} 3... cxd4 {[%clk 0:02:58.4]} 4.
Nxd4 {[%clk 0:02:56.9]} 4... Nf6 {[%clk 0:02:58.9]} 5. Nc3 {[%clk 0:02:56.3]}
5... a6 {[%clk 0:02:59.4]} 6. h3 {[%clk 0:02:56.7]} 6... e6 {[%clk 0:02:53.3]}
7. g4 {[%clk 0:02:56]} 7... Nfd7 {[%clk 0:02:46.5]} 8. Be3 {[%clk 0:02:54]} 8...
Qc7 {[%clk 0:02:47.1]} 9. Qd2 {[%clk 0:02:51.6]} 9... b5 {[%clk 0:02:47.6]} 10.
O-O-O {[%clk 0:02:47.9]} 10... Bb7 {[%clk 0:02:48.2]} 11. a3 {[%clk 0:02:45.4]}
11... Nb6 {[%clk 0:02:42.5]} 12. Kb1 {[%clk 0:02:40]} 12... N8d7 {[%clk
0:02:32.4]} 13. f4 {[%clk 0:02:36.6]} 13... d5 {[%clk 0:02:14.5]} 14. exd5
{[%clk 0:02:24]} 14... Nxd5 {[%clk 0:02:12.8]} 15. Nxd5 {[%clk 0:02:24.4]} 15...
Bxd5 {[%clk 0:02:13.6]} 16. Bg2 {[%clk 0:02:25.3]} 16... Bxg2 {[%clk 0:01:36.2]}
17. Qxg2 {[%clk 0:02:26.2]} 17... Nb6 {[%clk 0:01:36.8]} 18. Nxb5 {[%clk
0:02:19.1]} 1-0

[Event "*** Titled Tuesday Blitz"]
[Site "Chess.com"]
[Date "2020.04.21"]
[Round "1"]
[White "Oligan22"]
[Black "LittlePeasant"]
[Result "0-1"]
[WhiteElo "2415"]
[BlackElo "2795"]
[TimeControl "180+1"]
[EndTime "10:04:41 PDT"]
[Termination "LittlePeasant won by resignation"]

1. e4 {[%clk 0:03:00.9]} 1... c5 {[%clk 0:02:57.4]} 2. Nf3 {[%clk 0:02:59.3]}
2... e6 {[%clk 0:02:57.8]} 3. d4 {[%clk 0:02:58.9]} 3... cxd4 {[%clk 0:02:58.7]}
4. Nxd4 {[%clk 0:02:59.7]} 4... Nc6 {[%clk 0:02:59.6]} 5. Nc3 {[%clk 0:03:00]}
5... Qc7 {[%clk 0:02:59.8]} 6. Be2 {[%clk 0:02:46.7]} 6... a6 {[%clk 0:02:59.4]}
7. O-O {[%clk 0:02:40.3]} 7... Nf6 {[%clk 0:02:59.5]} 8. Be3 {[%clk 0:02:35.5]}
8... Be7 {[%clk 0:02:57.6]} 9. f4 {[%clk 0:02:32.2]} 9... d6 {[%clk 0:02:57.8]}
10. Qe1 {[%clk 0:02:28.8]} 10... O-O {[%clk 0:02:55.2]} 11. Qg3 {[%clk
0:02:27.2]} 11... Nxd4 {[%clk 0:02:53.2]} 12. Bxd4 {[%clk 0:02:26.6]} 12... b5
{[%clk 0:02:53.7]} 13. a3 {[%clk 0:02:24.3]} 13... Bb7 {[%clk 0:02:53.6]} 14.
Rae1 {[%clk 0:02:24.2]} 14... Rad8 {[%clk 0:02:53.5]} 15. Bd3 {[%clk 0:02:23.8]}
15... Bc6 {[%clk 0:02:41.7]} 16. Qh3 {[%clk 0:02:17.2]} 16... e5 {[%clk
0:01:54]} 17. Be3 {[%clk 0:02:14.1]} 17... Qb7 {[%clk 0:01:48.5]} 18. Nd5 {[%clk
0:01:57.2]} 18... Bxd5 {[%clk 0:01:45.2]} 19. exd5 {[%clk 0:01:58.1]} 19... e4
{[%clk 0:01:41.8]} 20. Be2 {[%clk 0:01:45.6]} 20... Nxd5 {[%clk 0:01:41]} 21.
Bd4 {[%clk 0:01:44.8]} 21... Bf6 {[%clk 0:01:39.8]} 22. Bxf6 {[%clk 0:01:27.6]}
22... Nxf6 {[%clk 0:01:40.7]} 23. g4 {[%clk 0:01:27.6]} 23... Qc8 {[%clk
0:01:41]} 24. Qh4 {[%clk 0:01:25.1]} 24... Qxc2 {[%clk 0:01:30]} 25. g5 {[%clk
0:01:25.5]} 25... Nd5 {[%clk 0:01:28.7]} 26. Bg4 {[%clk 0:01:25.1]} 26... f5
{[%clk 0:01:19.2]} 27. gxf6 {[%clk 0:01:21.7]} 27... Nxf6 {[%clk 0:01:19.6]} 28.
Be6+ {[%clk 0:01:21.1]} 28... Kh8 {[%clk 0:01:19.4]} 29. Bf5 {[%clk 0:01:21]}
29... Qc5+ {[%clk 0:01:18.4]} 0-1